[Event "21st Bangkok CC Open 2024"]
[Site "Bangkok"]
[Date "2024.04.14"]
[Round "2.7"]
[White "Rahman, Taibur"]
[Black "Das, Sayantan"]
[Result "0-1"]
[ECO "D38"]
[WhiteElo "2166"]
[BlackElo "2507"]
[Annotator "TA"]
[PlyCount "124"]
[EventDate "2024.04.13"]
[EventType "swiss"]
[EventCountry "THA"]
[SourceTitle "playchess.com"]
[Source "ChessBase"]
[SourceQuality "1"]
[TimeControl "40/5400+30:1800+30"]

{[%evp 22,124,50,41,30,-87,-50,-44,-47,-40,-34,-36,-35,-41,-37,-41,-36,-36,-41,-42,-41,-51,-44,-51,-12,-16,-2,-29,-11,-29,-13,-34,-22,-45,-36,-47,-42,-52,-29,-32,-14,-25,-30,-60,-25,-22,-13,-23,-18,-65,-55,-68,-60,-54,-56,-84,-56,-52,-52,-56,-45,-73,-49,-50,-40,-52,-52,-72,-72,-157,-85,-125,-24,-56,-26,-55,-35,-152,-165,-154,-143,-214,-179,-237,-224,-379,-385,-351,-272,-264,-252,-788,-768,-782,-771,-1180,-1084,-1158,-1116,-1005,-992,-1742,-1710,-29989,-29990]} 1. d4 {[%emt 0:00:04]} d5 {[%emt 0:00:11]} 2. c4 {[%emt 0:00:06]} e6 {[%emt 0:00:08]} 3. Nc3 {[%emt 0:00:05]} Nf6 {[%emt 0:00:17]} 4. cxd5 {[%emt 0:02:17]} exd5 {[%emt 0:00:07]} 5. Bg5 {[%emt 0:00:02]} Bb4 {[%emt 0:00:17]} 6. Nf3 {[%emt 0:01:30]} h6 {[%emt 0:07:44]} 7. Bh4 {[%emt 0:00:17]} Bf5 {[%emt 0:03:31] D38: Queen's Gambit Declined: Ragozin Defence (4 Nf3 Bb4).} 8. Qa4+ {[%emt 0:01:04]} Nc6 {[%emt 0:00:08]} 9. e3 {[%emt 0:00:04]} g5 {[%emt 0:06:49]} 10. Bg3 {[%emt 0:00:29]} Ne4 {[%emt 0:00:35]} 11. Bb5 {[%emt 0:00:55]} Bd7 {[%emt 0:05:35]} 12. Qc2 $146 {[%emt 0:18:04]} ({Predecessor:} 12. Qb3 O-O 13. Bxc6 Bxc3+ 14. bxc3 Bxc6 15. Ne5 Qe8 16. f3 Nd6 17. Kf2 f6 18. Nd3 {1-0 Sargsyan,S (2639)-Alonso Rosell,A (2564) Menorca op 1st 2022 (4)}) 12... h5 {[%emt 0:07:17]} 13. Nd2 {[%emt 0:35:57]} (13. h4 $11 {keeps the balance.}) 13... Nxd2 {[%emt 0:14:22]} 14. Kxd2 {[%emt 0:01:19]} h4 {[%emt 0:01:47]} 15. Bxc6 {[%emt 0:00:16]} Bxc6 {[%emt 0:00:31]} 16. Be5 {[%emt 0:00:04]} Rh6 {[%emt 0:00:18]} 17. h3 {[%emt 0:00:49]} Qe7 {[%emt 0:06:36]} 18. a3 {[%emt 0:12:15]} Bd6 {[%emt 0:01:06]} 19. Bxd6 {[%emt 0:00:13]} Rxd6 {[%emt 0:00:14]} 20. Rad1 {[%emt 0:01:12]} O-O-O {[%emt 0:05:40]} 21. Kc1 {[%emt 0:00:15]} Qf6 {[%emt 0:09:11]} 22. Kb1 {[%emt 0:01:29]} Qg6 {[%emt 0:04:33]} 23. Qxg6 {[%emt 0:00:33]} Rxg6 {[%emt 0:00:06]} 24. Rd2 {[%emt 0:03:51]} Re8 {[%emt 0:03:10]} 25. Re1 {[%emt 0:03:46]} Rd6 {[%emt 0:02:30]} 26. Ka1 {[%emt 0:01:57]} Kd8 {[%emt 0:01:56]} 27. Ne2 {[%emt 0:03:48]} Bd7 {[%emt 0:03:46]} 28. Nc1 {[%emt 0:00:13]} Bf5 {[%emt 0:01:44]} 29. Nd3 {[%emt 0:00:05]} Rf6 {[%emt 0:01:57]} 30. Ne5 {[%emt 0:01:41]} Be4 {[%emt 0:00:24]} 31. Rg1 {[%emt 0:02:35]} Ke7 {[%emt 0:04:34]} 32. Ka2 {[%emt 0:00:20]} a5 {[%emt 0:02:03]} 33. f3 {[%emt 0:04:38]} Bf5 {[%emt 0:02:19]} 34. Rc1 {[%emt 0:01:01]} c6 {[%emt 0:01:21]} 35. b3 {[%emt 0:00:53]} (35. Rf2 $11 {should be considered.}) 35... Re6 $15 {[%emt 0:01:45]} 36. Re1 {[%emt 0:01:23]} f6 {[%emt 0:02:54]} 37. Ng4 $1 {[%emt 0:01:36]} Kd6 {[%emt 0:00:27]} 38. Rde2 {[%emt 0:00:48]} Bd3 {[%emt 0:00:25]} 39. Rd2 {[%emt 0:00:10]} Bg6 {[%emt 0:00:24]} 40. Kb2 {[%emt 0:00:26]} b6 {[%emt 0:00:14]} 41. Kc3 {[%emt 0:31:41]} Bh5 {[%emt 0:31:07]} 42. Rde2 {[%emt 0:00:00]} Kc7 {[%emt 0:00:00]} 43. Nf2 {[%emt 0:00:00]} Bg6 {[%emt 0:00:00]} 44. Ng4 {[%emt 0:00:00]} c5 {[%emt 0:00:00]} 45. Nf2 {[%emt 0:00:00]} (45. Rc1 $142) 45... R8e7 {[%emt 0:00:00]} ({Black should play} 45... cxd4+ 46. Kxd4 Rc6) 46. Ng4 {[%emt 0:00:00]} Be8 {[%emt 0:00:00]} ({Better is} 46... cxd4+ $17 47. Kxd4 Rc6) 47. Rd2 {[%emt 0:00:00]} Bc6 {[%emt 0:00:00]} 48. Rde2 {[%emt 0:00:00]} Re8 {[%emt 0:00:00]} 49. Nf2 {[%emt 0:00:00]} ({White should try} 49. Rc1 $15) 49... Bb5 {[%emt 0:00:00]} 50. Nd3 {[%emt 0:00:00]} Kc6 {[%emt 0:00:00]} 51. dxc5 {[%emt 0:00:00]} (51. Kd2 $17) 51... bxc5 $19 {[%emt 0:00:00]} 52. e4 {[%emt 0:00:00]} (52. a4 {was called for.} Ba6 53. Kc2) 52... d4+ $19 {[%emt 0:00:00]} 53. Kc2 $2 {[%emt 0:00:00]} (53. Kd2) 53... a4 $19 {[%emt 0:00:00]} 54. bxa4 {[%emt 0:00:15]} Bxd3+ {[%emt 0:01:09]} 55. Kxd3 {[%emt 0:00:07]} Ra8 {[%emt 0:00:09]} 56. Kc4 $2 {[%emt 0:06:30]} (56. Rb2) 56... Rxa4+ $19 {[%emt 0:00:29]} 57. Kb3 {[%emt 0:00:01]} Kb5 {[%emt 0:01:05]} 58. e5 {[%emt 0:00:48]} c4+ {[%emt 0:00:44]} 59. Kb2 {[%emt 0:00:30]} f5 {[%emt 0:00:45]} 60. Rb1 {[%emt 0:01:08]} Kc5 {[%emt 0:00:10]} 61. Ree1 {[%emt 0:00:33]} d3 {[%emt 0:01:13]} 62. Ka2 {[%emt 0:00:35]} Rea6 {[%emt 0:00:23]} 0-1

[Event "21st Bangkok CC Open 2024"]
[Site "Bangkok"]
[Date "2024.04.14"]
[Round "2.8"]
[White "Sengupta, Deep"]
[Black "Teo, Hong Ming"]
[Result "1-0"]
[ECO "A13"]
[WhiteElo "2500"]
[BlackElo "2132"]
[Annotator "TA"]
[PlyCount "47"]
[EventDate "2024.04.13"]
[EventType "swiss"]
[EventCountry "THA"]
[SourceTitle "playchess.com"]
[Source "ChessBase"]
[SourceQuality "1"]
[TimeControl "40/5400+30:1800+30"]

{[%evp 14,47,22,0,6,0,0,0,19,0,0,-6,-23,-12,0,0,-8,-8,0,-8,13,0,14,8,28,32,37,27,38,0,199,181,392,383,1025,1016]} 1. c4 {[%emt 0:00:07]} e6 {[%emt 0:00:08]} 2. Nf3 {[%emt 0:00:05]} d5 {[%emt 0:00:05]} 3. e3 {[%emt 0:00:03]} Nf6 {[%emt 0:00:24]} 4. b3 {[%emt 0:00:05]} c5 {[%emt 0:00:38]} 5. Bb2 {[%emt 0:00:06]} Nc6 {[%emt 0:00:06]} 6. cxd5 {[%emt 0:01:04]} exd5 {[%emt 0:00:09]} 7. Bb5 {[%emt 0:00:05]} Bd6 {[%emt 0:00:10]} 8. O-O {[%emt 0:01:13]} O-O {[%emt 0:00:13]} 9. d4 {[%emt 0:00:05]} cxd4 {[%emt 0:00:30]} 10. Nxd4 {[%emt 0:00:07]} Bc7 {[%emt 0:00:04] The position is equal.} 11. Bxc6 {[%emt 0:02:35]} (11. Nxc6 bxc6 12. Be2 (12. Bxc6 $2 Qd6 $19) 12... Qd6 $17) 11... bxc6 {[%emt 0:09:10]} 12. Ba3 {[%emt 0:00:22] Repels Qd6} (12. Nxc6 $2 Qd6 13. Ne5 Ng4 $19) (12. Qc2 $5) 12... Re8 $1 {[%emt 0:15:12]} 13. Nd2 {[%emt 0:00:47]} (13. Nxc6 Bxh2+ 14. Kxh2 Qc7+ 15. g3 Qxc6 $17) 13... Bg4 {[%emt 0:10:06] This pair of bishops is nice.} 14. Qc2 {[%emt 0:23:39][%cal Oh2h3]} Rc8 {[%emt 0:01:20][%cal Oc6c5]} 15. Rac1 {[%emt 0:00:36]} Qd7 {[%emt 0:01:04]} 16. Qd3 {[%emt 0:03:26]} ({But not} 16. Nxc6 Be2 17. Rfe1 Bb5 $17) 16... Bb6 {[%emt 0:08:15]} 17. Bc5 {[%emt 0:25:25]} Qb7 {[%emt 0:01:15]} (17... Ne4 $5 18. Nxe4 (18. Bxb6 Nxd2 19. Qxd2 axb6 $15) 18... dxe4 $14) 18. b4 {[%emt 0:10:10]} Nd7 {[%emt 0:03:59]} 19. h3 {[%emt 0:01:15]} Bh5 {[%emt 0:07:11]} 20. Bxb6 {[%emt 0:09:02]} axb6 {[%emt 0:02:08]} 21. Qc3 {[%emt 0:01:59][%cal Od4f5] Nf5! is the strong threat.} Ne5 $2 {[%emt 0:09:54]} ({Much weaker is} 21... c5 $6 22. Nf5 d4 23. exd4 $16) (21... f6 $11) 22. f4 $18 {[%emt 0:01:59]} c5 $2 {[%emt 0:00:48] [#]} (22... Nc4 {was worth a try.}) 23. Nf5 $1 {[%emt 0:00:51]} cxb4 $2 {[%emt 0:05:20] [#]} (23... Qb8 24. fxe5 Rxe5) 24. Qxc8 $3 {[%emt 0:00:51][%mdl 512] Weighted Error Value: White=0.06 (flawless) /Black=0.44.  Loses game:     	---       	Black=1      Mistake:       	---       	Black=2      Inaccurate:     	White=1     	---        OK:         	White=4     	Black=2      Best:        	White=1     	---        Strong:       	White=1     	Black=1      Brilliant:      	White=1     	---} 1-0

[Event "21st Bangkok CC Open 2024"]
[Site "Bangkok"]
[Date "2024.04.14"]
[Round "2.9"]
[White "Otsuka, Shou"]
[Black "Zhao, Zong-Yuan"]
[Result "1/2-1/2"]
[ECO "B06"]
[WhiteElo "2138"]
[BlackElo "2485"]
[Annotator "TA"]
[PlyCount "82"]
[EventDate "2024.04.13"]
[EventType "swiss"]
[EventCountry "THA"]
[SourceTitle "playchess.com"]
[Source "ChessBase"]
[SourceQuality "1"]
[TimeControl "40/5400+30:1800+30"]

{[%evp 9,82,45,45,22,39,23,25,24,42,29,21,26,25,34,61,49,66,61,82,77,125,129,145,103,109,83,121,126,168,161,242,177,117,117,173,175,173,161,208,220,203,217,215,221,219,232,277,217,194,201,247,248,221,139,135,122,139,143,142,77,47,33,147,143,163,60,52,54,57,11,13,0,48,0,19]} 1. e4 {[%emt 0:00:03]} c5 {[%emt 0:00:04]} 2. c3 {[%emt 0:00:06]} d5 {[%emt 0:03:29]} 3. exd5 {[%emt 0:00:08]} Qxd5 {[%emt 0:00:04]} 4. d4 {[%emt 0:00:10]} g6 {[%emt 0:01:16]} 5. Nf3 {[%emt 0:00:23]} Bg7 {[%emt 0:00:08]} 6. Nbd2 {[%emt 0:01:30][%cal Bb1d2,Bd2f3,Bf3d4,Bd4b5,Bb5d6][%mdl 32]} cxd4 {[%emt 0:02:46]} 7. Bc4 {[%emt 0:01:56]} Qd8 {[%emt 0:02:38]} 8. Nxd4 {[%emt 0:04:43] White has an edge.} Nh6 {[%emt 0:15:26]} 9. O-O {[%emt 0:01:13]} O-O {[%emt 0:00:48]} 10. N2f3 {[%emt 0:09:12]} Nf5 {[%emt 0:04:40]} 11. Bg5 {[%emt 0:02:17]} Nxd4 {[%emt 0:08:34]} 12. Nxd4 {[%emt 0:01:53]} h6 {[%emt 0:01:09]} 13. Bh4 {[%emt 0:00:32]} Qc7 {[%emt 0:10:01]} 14. Qe2 {[%emt 0:04:13]} e6 {[%emt 0:14:10]} (14... Nc6 $142) 15. Nb5 $16 {[%emt 0:02:16]} Qc6 {[%emt 0:03:08]} 16. Rfd1 {[%emt 0:13:56]} a6 {[%emt 0:12:58] [#]} 17. a4 {[%emt 0:00:37][%cal Oh4e7]} b6 {[%emt 0:03:09]} (17... axb5 $2 18. axb5 Rxa1 19. bxc6 Rxd1+ 20. Qxd1 Nxc6 21. Bf1 $18) (17... Nd7 18. Nd6) 18. Nd6 {[%emt 0:09:16]} Bb7 {[%emt 0:00:15][%csl Gb7][%cal Rc6g2]} 19. f3 {[%emt 0:00:38] Active counter play!} g5 {[%emt 0:10:36]} (19... Nd7 $142 20. Be7 Rfe8) 20. Bf2 {[%emt 0:00:34][%cal Oc4d3] Threatens to win with Bd3!} Nd7 {[%emt 0:01:22]} 21. Bd3 $36 {[%emt 0:06:58][%mdl 2048] White is in control.} (21. Nxb7 {simplifies} Qxb7 22. Bd3 Nf6 23. h4) 21... Nc5 {[%emt 0:00:29]} (21... Qxd6 $2 {is the wrong capture.} 22. Bh7+ Kxh7 23. Rxd6 $18) (21... Nf6 $16 {might work better.} 22. Nxb7 Qxb7) 22. Bc2 $18 {[%emt 0:00:07] Black must now prevent b4.} a5 {[%emt 0:03:26]} 23. Nxb7 {[%emt 0:04:45]} Nxb7 {[%emt 0:00:14]} (23... Qxb7 $142 24. Rd2 Qa6) 24. Qe4 $1 {[%emt 0:04:26]} Qxe4 {[%emt 0:00:48]} 25. Bxe4 {[%emt 0:00:07]} ({Not} 25. fxe4 Nc5 $11) 25... Rab8 {[%emt 0:00:24] Black is weak on the light squares} 26. Bxb6 {[%emt 0:01:31]} f5 {[%emt 0:00:06]} 27. Bd3 {[%emt 0:06:04]} Rfc8 {[%emt 0:00:39]} 28. Ba7 {[%emt 0:04:40][%cal Od3a6] This pair of bishops is nice.} Ra8 {[%emt 0:00:07]} 29. Bf2 {[%emt 0:00:05]} Nd6 {[%emt 0:00:52][%cal Bb7d6,Bd6c4,Bc4d2][%mdl 32] [#]} 30. Bb5 $1 {[%emt 0:00:37]} Nc4 {[%emt 0:01:10]} 31. Rab1 {[%emt 0:05:07] Bd7 would now be deadly.} Rc7 {[%emt 0:00:16]} 32. Rd7 {[%emt 0:01:33]} Rxd7 {[%emt 0:00:33]} 33. Bxd7 {[%emt 0:00:06]} Kf7 {[%emt 0:00:08]} 34. b3 {[%emt 0:04:34]} (34. Bb5 $142 Rc8 35. Be1) 34... Nd2 $16 {[%emt 0:00:41]} 35. Re1 {[%emt 0:00:10]} Bxc3 {[%emt 0:00:25]} (35... Ra6 $1 $14) 36. Bxe6+ {[%emt 0:00:15]} Kf6 {[%emt 0:00:18][%cal Od2f3] [#] Strongly threatening ...Nxf3+!} 37. Bd5 {[%emt 0:00:35]} (37. Rc1 $1 $18 {[%cal Rc1c3]} Kxe6 38. Rxc3) 37... Rd8 $14 {[%emt 0:00:16]} 38. Re6+ {[%emt 0:00:30]} Kg7 {[%emt 0:00:04]} 39. Re7+ {[%emt 0:03:26]} (39. Rc6 $14 {deserves consideration.} Rxd5 40. Rxc3 Nxb3 41. Be3 (41. Rxb3 Rd1+ $11)) 39... Kf6 $11 {[%emt 0:00:31]} 40. Re6+ {[%emt 0:00:29]} Kg7 {[%emt 0:00:05]} 41. Re7+ {[%emt 0:31:17]} Kf6 {[%emt 0:31:15] Weighted Error Value: White=0.17 (very precise) /Black=0.21 (precise) .  Mistake:       	White=3     	Black=5      Inaccurate:     	White=2     	Black=3      OK:         	White=14    	Black=14     Best:        	White=2     	Black=7} 1/2-1/2

[Event "21st Bangkok CC Open 2024"]
[Site "Bangkok"]
[Date "2024.04.14"]
[Round "2.10"]
[White "Srihari L R"]
[Black "Tobing, Daniel Hermawan Lumb"]
[Result "1-0"]
[ECO "E62"]
[WhiteElo "2482"]
[BlackElo "2098"]
[Annotator "TA"]
[PlyCount "96"]
[EventDate "2024.04.13"]
[EventType "swiss"]
[EventCountry "THA"]
[SourceTitle "playchess.com"]
[Source "ChessBase"]
[SourceQuality "1"]
[TimeControl "40/5400+30:1800+30"]

{[%evp 18,96,24,11,13,16,26,16,33,13,16,-36,0,0,0,0,0,0,0,0,0,0,0,0,29,27,30,10,16,9,0,11,0,12,44,36,61,52,60,50,56,45,46,44,45,47,69,68,75,75,75,67,77,77,76,76,83,83,90,67,247,247,222,222,5073,5081,29964,29960,9914,6191,29960,29969,29976,29978,29978,29979,29979,29978,29978,29977,29985]} 1. c4 {[%emt 0:00:17]} Nf6 {[%emt 0:00:15]} 2. d4 {[%emt 0:00:23]} g6 {[%emt 0:00:20]} 3. g3 {[%emt 0:00:08]} Bg7 {[%emt 0:00:07]} 4. Bg2 {[%emt 0:00:05]} O-O {[%emt 0:00:11]} 5. Nc3 {[%emt 0:00:04]} d6 {[%emt 0:00:09]} 6. Nf3 {[%emt 0:00:04]} Nc6 {[%emt 0:00:17]} 7. O-O {[%emt 0:00:07]} e5 {[%emt 0:00:52]} 8. dxe5 {[%emt 0:00:23]} dxe5 {[%emt 0:00:09]} 9. Bg5 {[%emt 0:00:13]} Be6 {[%emt 0:00:11]} 10. Nd2 {[%emt 0:00:47][%cal Oc3d5]} Qc8 {[%emt 0:06:02]} 11. Nd5 {[%emt 0:01:07]} Nd7 {[%emt 0:04:13]} 12. e4 {[%emt 0:00:41]} Kh8 {[%emt 0:03:35] The position is equal.} 13. Be3 {[%emt 0:08:22]} Nd4 {[%emt 0:05:17]} 14. f4 {[%emt 0:06:55]} (14. Nb3 $11) 14... c6 {[%emt 0:15:37]} 15. f5 {[%emt 0:10:27]} cxd5 {[%emt 0:02:54]} 16. fxe6 {[%emt 0:00:31]} fxe6 {[%emt 0:00:55]} 17. Rxf8+ {[%emt 0:00:49]} Qxf8 {[%emt 0:01:24]} 18. exd5 {[%emt 0:03:10]} exd5 {[%emt 0:04:33]} 19. cxd5 {[%emt 0:11:25]} Nb6 {[%emt 0:06:46]} 20. Rc1 {[%emt 0:18:51]} Rc8 {[%emt 0:07:50]} 21. Rxc8 {[%emt 0:05:18]} Qxc8 {[%emt 0:01:13]} 22. d6 {[%emt 0:00:20]} Qd7 $1 {[%emt 0:05:31]} 23. Ne4 {[%emt 0:03:26] With the idea Qf1.} Nc4 {[%emt 0:28:48][%csl LRb2,LRd6,LRe3]} 24. Bxd4 {[%emt 0:00:55]} exd4 {[%emt 0:00:03]} 25. Qb3 {[%emt 0:00:09]} Ne5 {[%emt 0:00:08]} 26. Qd5 $36 {[%emt 0:01:30][%cal Oe4c5][%mdl 2048] Nc5! is the strong threat. White is more active.} Qc6 {[%emt 0:02:49]} 27. Qxc6 {[%emt 0:07:53]} (27. Qxd4 $2 Qc1+ (27... Nf3+ $2 28. Bxf3 Bxd4+ 29. Kg2 $19) 28. Bf1 Nf3+ 29. Kg2 Nxd4 $19) 27... bxc6 $14 {[%emt 0:00:19][%mdl 4096] Endgame. KBN-KBN} 28. Bh3 {[%emt 0:00:53]} Bf8 {[%emt 0:02:33]} 29. d7 {[%emt 0:02:18]} Be7 {[%emt 0:00:01] [#]} 30. Nc5 $1 {[%emt 0:00:35][%cal Og1f2]} Nf7 {[%emt 0:00:17]} 31. Ne6 {[%emt 0:05:13][%cal Og1f2]} Nd8 {[%emt 0:00:10]} 32. Nxd8 {[%emt 0:01:43]} (32. Nxd4 $2 Bc5 33. b3 Bxd4+ $19) 32... Bxd8 {[%emt 0:00:02] [#] KB-KB} 33. b4 $1 {[%emt 0:00:15]} Kg7 {[%emt 0:01:10]} 34. Bg2 {[%emt 0:00:04]} Kf6 {[%emt 0:00:08]} 35. Bxc6 {[%emt 0:00:05] White is more active.} Ke5 {[%emt 0:00:03]} 36. Kf2 {[%emt 0:00:31]} Kd6 {[%emt 0:00:01]} 37. Bb5 {[%emt 0:01:04]} h5 {[%emt 0:01:43][%cal Bh7h5,Bh5g4,Bg4g3][%mdl 32]} 38. h4 {[%emt 0:04:07][%cal Bh2h4,Bh4h5,Bh5h6,Bh6h7][%mdl 32]} g5 $2 {[%emt 0:01:50] [#] This move loses the game for Black.} ({Black should try} 38... Kc7 $14) 39. g4 $1 $18 {[%emt 0:01:34][%mdl 512]} hxg4 {[%emt 0:00:55]} 40. h5 {[%emt 0:00:02]} a6 $2 {[%emt 0:00:26] [#]} (40... d3 41. Kg3 (41. Bxd3 Kxd7 42. Kg3 Ke7 $16) 41... d2) 41. h6 $1 {[%emt 0:30:23] White threatens h7 and mate.} Bf6 {[%emt 0:02:09] [#]} 42. h7 $1 {[%emt 0:00:00]} Ke7 {[%emt 0:00:54]} 43. Bxa6 {[%emt 0:00:00] Bd3 would kill now.} Be5 {[%emt 0:02:55]} 44. Bb5 {[%emt 0:00:00] White mates.} g3+ {[%emt 0:00:06]} 45. Kg2 {[%emt 0:00:00]} d3 {[%emt 0:00:10]} 46. Bxd3 {[%emt 0:00:00]} Kxd7 {[%emt 0:00:04]} 47. a4 {[%emt 0:00:00][%cal Ba2a4,Ba4a5][%mdl 32]} Kc6 {[%emt 0:00:33]} 48. a5 {[%emt 0:00:00]} Kd5 {[%emt 0:01:28] Weighted Error Value: White=0.05 (flawless) /Black=0.32.  Loses game:     	---       	Black=1      Mistake:       	White=1     	Black=1      Inaccurate:     	---       	Black=3      OK:         	White=14    	Black=6      Best:        	White=1     	Black=2      Strong:       	White=1     	Black=1      Brilliant:      	White=1     	---} 1-0

[Event "21st Bangkok CC Open 2024"]
[Site "Bangkok"]
[Date "2024.04.15"]
[Round "3.1"]
[White "Ayush Sharma"]
[Black "Bernadskiy, Vitaliy"]
[Result "1/2-1/2"]
[ECO "E05"]
[WhiteElo "2311"]
[BlackElo "2561"]
[Annotator "TA"]
[PlyCount "61"]
[EventDate "2024.04.13"]
[EventType "swiss"]
[EventCountry "THA"]
[SourceTitle "playchess.com"]
[Source "ChessBase"]
[SourceQuality "1"]
[TimeControl "40/5400+30:1800+30"]

{[%evp 17,61,23,35,0,-25,0,33,8,31,19,27,0,0,0,0,0,7,12,13,16,6,12,8,13,12,12,18,8,13,5,4,10,10,10,30,29,33,31,29,13,14,14,14,14,14,14]} 1. Nf3 {[%emt 0:09:43]} d5 {[%emt 0:00:56][%cal Bd7d5,Bd5c4][%mdl 32]} 2. g3 {[%emt 0:00:12]} Nf6 {[%emt 0:04:05]} 3. Bg2 {[%emt 0:00:09]} e6 {[%emt 0:00:12]} 4. O-O {[%emt 0:00:33]} Be7 {[%emt 0:00:26]} 5. d4 {[%emt 0:01:45]} O-O {[%emt 0:07:05]} 6. c4 {[%emt 0:00:27]} dxc4 {[%emt 0:00:05]} 7. Ne5 {[%emt 0:02:32]} Nc6 {[%emt 0:03:52]} 8. Bxc6 {[%emt 0:05:00]} bxc6 {[%emt 0:00:03]} 9. Nxc6 {[%emt 0:08:08]} Qe8 {[%emt 0:00:23]} 10. Qa4 {[%emt 0:07:07]} (10. Nxe7+ $14 Qxe7 11. Qa4) 10... Bd6 $11 {[%emt 0:02:25] [#] Strongly threatening ...Bb7.} 11. Qxc4 {[%emt 0:00:12]} Bb7 {[%emt 0:08:26][%cal Bc8b7,Bb7a6,Ba6e2][%mdl 32]} 12. Ne5 {[%emt 0:04:56] White is slightly better.} c5 {[%emt 0:00:24]} 13. Nc3 {[%emt 0:03:00]} Rd8 {[%emt 0:03:43]} 14. Be3 {[%emt 0:10:27]} Nd5 {[%emt 0:05:21]} 15. Nxd5 {[%emt 0:02:25]} exd5 {[%emt 0:02:06]} 16. Qb3 {[%emt 0:00:32]} Ba6 {[%emt 0:04:30] ...cxd4 is the strong threat.} 17. Nf3 {[%emt 0:08:38]} Bxe2 {[%emt 0:08:48] [#]} 18. dxc5 {[%emt 0:00:06] Threatens to win with Rfe1.} Bc7 $132 {[%emt 0:11:58][%mdl 2048] Black has counterplay. A strong pair of Bishops.} 19. Rfe1 {[%emt 0:06:33]} Bxf3 {[%emt 0:03:25]} 20. Bf4 {[%emt 0:00:33]} Qc6 {[%emt 0:00:13] Hoping for ...d4.} 21. Qxf3 {[%emt 0:00:59] Bxc7 would now be deadly.} Bxf4 {[%emt 0:00:07]} 22. Qxf4 {[%emt 0:00:05]} Qxc5 {[%emt 0:00:05]} 23. Rac1 {[%emt 0:06:15]} Qb6 {[%emt 0:00:05]} 24. Rc7 {[%emt 0:01:48]} Qxb2 {[%emt 0:00:13]} 25. Ree7 {[%emt 0:00:05]} Qf6 {[%emt 0:00:10]} 26. Qxf6 {[%emt 0:00:05]} gxf6 {[%emt 0:00:04]} 27. Rxa7 {[%emt 0:00:18]} d4 {[%emt 0:00:05]} 28. Rad7 {[%emt 0:00:03]} Rxd7 {[%emt 0:00:08] The position is equal.} 29. Rxd7 {[%emt 0:00:04]} Ra8 {[%emt 0:00:03]} 30. Rxd4 {[%emt 0:00:05] Black must now prevent a4.} Rxa2 {[%emt 0:00:03]} 31. Kg2 {[%emt 0:00:04] Weighted Error Value: White=0.07 (flawless) /Black=0.04 (flawless) .  Inaccurate:     	White=1     	Black=1      OK:         	White=9     	Black=12     Best:        	White=3     	Black=3} 1/2-1/2